bitfinex/quotes_BTCUSD_20230906
["timestamp","ask_amount","ask_price","bid_price","bid_amount"]
[1693997540789,0.38864527,25746.0,25745.0,1.581698]
[1693997542450,0.38864527,25746.0,25745.0,0.804849]
[1693997542701,0.38864527,25746.0,25745.0,1.581698]
[1693997543772,0.38864527,25746.0,25745.0,0.804849]
[1693997544015,0.38864527,25746.0,25745.0,1.581698]
[1693997544417,0.38864527,25746.0,25745.0,0.804849]
[1693997544686,0.38864527,25746.0,25745.0,1.60311407]
[1693997544892,0.38864527,25746.0,25745.0,0.82626507]
[1693997549695,0.38864527,25746.0,25745.0,1.94596475]
[1693997550253,0.38864527,25746.0,25745.0,2.72281375]
[1693997552582,0.38864527,25746.0,25745.0,1.94596475]
[1693997553306,0.38864527,25746.0,25745.0,2.72281375]
[1693997553559,0.38864527,25746.0,25745.0,1.69637444]
[1693997562452,0.002,25746.0,25745.0,1.69637444]
[1693997563311,0.002,25746.0,25745.0,1.83626035]
[1693997564277,0.002,25746.0,25745.0,2.29550925]
[1693997565232,0.002,25746.0,25745.0,2.29549318]
[1693997565535,0.29282733,25746.0,25745.0,1.42539988]
[1693997565948,0.29282733,25746.0,25745.0,1.51865821]
[1693997568327,0.29282733,25746.0,25745.0,1.05940931]
[1693997568532,0.29282733,25746.0,25745.0,1.42540599]
[1693997578338,0.29282733,25746.0,25745.0,0.64855699]
[1693997588350,3.0099296,25746.0,25745.0,0.64855699]
[1693997588985,3.0099296,25746.0,25745.0,0.28260113]
[1693997590928,3.0099296,25746.0,25745.0,0.14271522]
[1693997591763,2.83960227,25746.0,25745.0,0.04941607]
[1693997592667,2.83760227,25746.0,25745.0,0.02141607]
[1693997592892,2.84560227,25746.0,25745.0,0.02341607]
[1693997593108,2.84560227,25746.0,25745.0,0.002]
[1693997593489,2.84560227,25746.0,25745.0,0.02441147]
[1693997594070,2.84160227,25746.0,25745.0,0.02341147]
[1693997594370,2.86560227,25746.0,25745.0,0.02541147]
[1693997594552,2.86160227,25746.0,25745.0,0.02441147]
[1693997594792,2.88560227,25746.0,25745.0,0.02641147]
[1693997598394,2.88560227,25746.0,25742.0,0.9896]
[1693997598639,0.63162062,25745.0,25742.0,0.90165417]
[1693997598848,1.55376,25744.0,25742.0,0.90165417]
[1693997599061,1.94040527,25744.0,25742.0,0.90165417]
[1693997599274,1.94040527,25744.0,25741.0,0.13329915]
[1693997600757,1.94040527,25744.0,25741.0,0.09329915]
[1693997600963,1.94040527,25744.0,25742.0,0.001]
[1693997601193,1.94040527,25744.0,25742.0,0.002]
[1693997601402,1.94140527,25744.0,25742.0,0.002]
[1693997601605,1.94140527,25744.0,25741.0,0.13829915]
[1693997602032,0.24167743,25743.0,25742.0,0.001]
[1693997602639,0.24167743,25743.0,25742.0,0.002]
[1693997603650,0.24167743,25743.0,25742.0,0.001]
[1693997604147,0.24567743,25743.0,25742.0,0.002]
[1693997604792,0.24567743,25743.0,25742.0,0.001]
[1693997605180,0.24967743,25743.0,25742.0,0.002]
[1693997606482,0.24967743,25743.0,25742.0,0.02332072]
[1693997612636,0.43967743,25743.0,25742.0,0.02332072]
[1693997614483,1.6032327,25743.0,25742.0,0.02332072]
[1693997614692,0.43967743,25743.0,25742.0,0.02332072]
[1693997614906,0.43967743,25743.0,25742.0,0.80026072]
[1693997619058,0.43967743,25743.0,25742.0,0.89355987]
[1693997620487,0.43967743,25743.0,25742.0,1.67049987]
[1693997620928,0.198,25743.0,25742.0,1.67049987]
[1693997629593,0.198,25743.0,25742.0,1.81038578]
[1693997631217,0.198,25743.0,25742.0,4.19358689]
[1693997631442,0.198,25743.0,25742.0,4.38010144]
[1693997632742,0.198,25743.0,25742.0,4.24021553]
[1693997634835,0.198,25743.0,25742.0,4.47336036]
[1693997643806,0.198,25743.0,25742.0,3.69642036]
[1693997644051,0.198,25743.0,25742.0,3.34277553]
[1693997648703,0.198,25743.0,25742.0,3.57592036]
[1693997648896,0.198,25743.0,25742.0,3.34277553]
[1693997649531,0.198,25743.0,25742.0,3.57592036]
[1693997650851,0.198,25743.0,25742.0,2.22299869]
[1693997657234,0.198,25743.0,25742.0,3.34277708]
[1693997657409,0.41251062,25743.0,25742.0,2.22299869]
[1693997658212,0.41251062,25743.0,25742.0,3.34277988]
[1693997658615,0.41251062,25743.0,25742.0,3.34278035]
[1693997658821,0.41251062,25743.0,25742.0,1.44605869]
[1693997659197,0.41251062,25743.0,25742.0,2.56584027]
[1693997661287,0.41251062,25743.0,25742.0,3.34278027]
[1693997665883,0.41251062,25743.0,25742.0,2.22299869]
[1693997667326,0.41251062,25743.0,25742.0,0.66911869]
[1693997667531,0.41251062,25743.0,25742.0,0.62251842]
[1693997669106,0.41251062,25743.0,25742.0,1.39945842]
[1693997669743,0.41251062,25743.0,25742.0,1.39445842]
[1693997672232,0.41251062,25743.0,25742.0,1.38945842]
[1693997672653,0.41251062,25743.0,25742.0,1.39774831]
[1693997672855,0.41251062,25743.0,25742.0,2.17468831]
[1693997674733,0.41251062,25743.0,25742.0,2.16968831]
[1693997675200,0.41251062,25743.0,25742.0,2.17446103]
[1693997676706,0.41251062,25743.0,25742.0,2.16946103]
[1693997676928,0.41251062,25743.0,25742.0,2.17423188]
[1693997678349,0.41251062,25743.0,25742.0,1.4905523]
[1693997679902,0.41251062,25743.0,25742.0,0.7136123]
[1693997680837,0.41251062,25743.0,25742.0,0.8913546]
[1693997685154,0.41251062,25743.0,25742.0,0.1144146]
[1693997685358,0.41251062,25743.0,25742.0,0.8913546]
[1693997686326,0.41251062,25743.0,25742.0,0.1144146]
[1693997691026,0.41251062,25743.0,25742.0,0.8913546]
[1693997693556,0.41251062,25743.0,25742.0,1.03126888]
[1693997693984,0.41251062,25743.0,25742.0,0.8913546]
[1693997694557,0.41251062,25743.0,25742.0,1.03126888]
[1693997695860,0.41251062,25743.0,25742.0,1.80820888]
[1693997696283,0.198,25743.0,25742.0,1.80820888]
[1693997696560,0.198,25743.0,25742.0,2.17425154]
[1693997696758,0.198,25743.0,25742.0,1.39731154]
[1693997696967,0.198,25743.0,25742.0,1.03126772]
[1693997697630,0.198,25743.0,25742.0,0.89135344]
[1693997699618,0.198,25743.0,25742.0,2.70564772]
[1693997699821,0.198,25743.0,25742.0,3.50493151]
[1693997700168,0.198,25743.0,25742.0,4.62470485]
[1693997700652,0.198,25743.0,25742.0,4.23805958]
[1693997701256,0.198,25743.0,25742.0,4.47120441]
[1693997704094,0.198,25743.0,25742.0,4.09154503]
[1693997708328,0.198,25743.0,25742.0,4.09145251]
[1693997708955,0.198,25743.0,25742.0,4.32444755]
[1693997709175,0.198,25743.0,25742.0,4.55178634]
[1693997709573,0.198,25743.0,25742.0,4.54678634]
[1693997709982,0.198,25743.0,25742.0,4.55597963]
[1693997711269,0.198,25743.0,25742.0,3.43629881]
[1693997711448,0.198,25743.0,25742.0,4.55597771]
[1693997721062,0.198,25743.0,25742.0,4.74226829]
[1693997721225,0.198,25743.0,25742.0,4.55597771]
[1693997722065,0.198,25743.0,25742.0,4.74226408]
[1693997722651,0.198,25743.0,25742.0,3.86368516]
[1693997722857,0.198,25743.0,25742.0,4.74207642]
[1693997727716,0.198,25743.0,25742.0,4.55578996]
[1693997727897,0.198,25743.0,25742.0,3.55151117]
[1693997728117,0.198,25743.0,25742.0,4.51473393]
[1693997728341,0.198,25743.0,25742.0,3.64465347]
[1693997728342,0.47122026,25743.0,25742.0,3.64465347]
[1693997728543,0.47122026,25743.0,25742.0,4.23531071]
[1693997728923,0.47122026,25743.0,25742.0,3.45837071]
[1693997729125,0.47122026,25743.0,25742.0,2.68143071]
[1693997729334,0.47122026,25743.0,25742.0,1.90449071]
[1693997729530,0.47122026,25743.0,25742.0,2.68143071]
[1693997729931,0.47122026,25743.0,25742.0,3.45837071]
[1693997730741,0.47122026,25743.0,25742.0,2.68143071]
[1693997732316,0.47122026,25743.0,25742.0,3.45837071]
[1693997732519,0.47122026,25743.0,25742.0,2.68143071]
[1693997732728,0.47122026,25743.0,25742.0,3.45837071]
[1693997733451,0.47122026,25743.0,25742.0,2.68143071]
[1693997734029,0.47122026,25743.0,25742.0,1.90449071]
[1693997734246,0.47122026,25743.0,25742.0,0.11851957]
[1693997735330,0.198,25743.0,25742.0,0.11851957]
[1693997735947,0.198,25743.0,25742.0,0.02534747]
[1693997736690,0.46830981,25743.0,25742.0,0.02534747]
[1693997737601,0.97491,25743.0,25742.0,0.02534747]
[1693997737823,1.26928161,25743.0,25742.0,0.02534747]
[1693997738181,0.49237161,25743.0,25742.0,0.02534747]
[1693997741967,1.26928161,25743.0,25742.0,0.02534747]
[1693997742953,0.49237161,25743.0,25742.0,0.02534747]
[1693997743343,0.49237161,25743.0,25740.0,1.94736371]
[1693997743710,0.49237161,25743.0,25741.0,0.02486444]
[1693997743911,0.49237161,25743.0,25740.0,1.94736371]
[1693997744333,0.48837161,25743.0,25740.0,1.94736371]
[1693997744665,0.49037161,25743.0,25740.0,1.96136371]
[1693997744871,0.48637161,25743.0,25740.0,1.96136371]
[1693997745240,0.48837161,25743.0,25740.0,1.97536371]
[1693997745641,0.29397195,25742.0,25740.0,1.97536371]
[1693997746250,0.29397195,25742.0,25740.0,1.93536371]
[1693997746466,0.29397195,25742.0,25740.0,1.92136371]
[1693997746707,0.29597195,25742.0,25740.0,1.93536371]
[1693997747290,0.29597195,25742.0,25740.0,1.97536371]
[1693997747450,0.29597195,25742.0,25740.0,1.96136371]
[1693997747650,0.29797195,25742.0,25740.0,1.93536371]
[1693997747852,0.29797195,25742.0,25740.0,1.97536371]
[1693997748314,0.29696587,25741.0,25740.0,1.97536371]
[1693997748518,0.29696587,25741.0,25740.0,1.8356461]
[1693997749230,0.29696587,25741.0,25740.0,1.8216461]
[1693997749586,0.29896587,25741.0,25740.0,1.8356461]
[1693997750929,0.29896587,25741.0,25740.0,1.8216461]
[1693997751689,0.30096587,25741.0,25740.0,1.8356461]
[1693997752548,0.30096587,25741.0,25740.0,2.6126461]
[1693997754583,0.30096587,25741.0,25740.0,2.63752169]
[1693997756357,0.004,25741.0,25740.0,4.2632077]
[1693997756538,0.004,25741.0,25740.0,4.44949046]
[1693997757280,0.004,25741.0,25740.0,4.30977285]
[1693997757705,0.27483494,25741.0,25740.0,3.48618875]
[1693997757910,0.27483494,25741.0,25740.0,2.00018612]
[1693997758134,0.27483494,25741.0,25740.0,4.26319864]
[1693997758552,0.27483494,25741.0,25740.0,4.35633702]
[1693997758803,0.27483494,25741.0,25740.0,4.26319864]
[1693997765060,0.27483494,25741.0,25740.0,3.14336124]
[1693997765262,0.27483494,25741.0,25740.0,4.26320367]
[1693997768701,0.27483494,25741.0,25740.0,4.24320367]
[1693997768907,0.27483494,25741.0,25740.0,4.42948643]
[1693997770906,0.27483494,25741.0,25740.0,4.28978777]
[1693997772110,0.27483494,25741.0,25740.0,4.26978777]
[1693997773914,0.27483494,25741.0,25740.0,4.31636308]
[1693997777907,0.27483494,25741.0,25740.0,4.08350501]
[1693997781011,0.27483494,25741.0,25740.0,4.08348669]
[1693997787204,0.27483494,25741.0,25740.0,4.31665495]
[1693997791121,0.004,25741.0,25740.0,1.81856187]
[1693997791328,0.27390872,25741.0,25740.0,1.81856187]
[1693997791746,0.27390872,25741.0,25740.0,0.83862945]
[1693997792798,0.004,25741.0,25740.0,0.83862945]
[1693997793589,0.004,25741.0,25740.0,0.65208027]
[1693997798876,0.004,25741.0,25740.0,0.05287559]
[1693997799082,2.72155527,25741.0,25740.0,0.05287559]
[1693997800438,1.94458527,25741.0,25740.0,0.05287559]
[1693997800659,2.1741888,25741.0,25740.0,0.06687559]
[1693997801058,2.1701888,25741.0,25740.0,0.03887559]
[1693997801613,2.1831888,25741.0,25740.0,0.03987559]
[1693997832837,0.258,25743.0,25741.0,0.77697]
[1693997833033,0.238,25743.0,25741.0,1.55394]
[1693997833418,0.238,25743.0,25739.0,0.1205]
[1693997833624,0.238,25743.0,25741.0,1.553938]
[1693997833880,0.262,25743.0,25741.0,0.776968]
[1693997834080,0.214,25743.0,25741.0,0.776968]
[1693997834286,0.214,25743.0,25741.0,1.553938]
[1693997835537,0.19,25743.0,25741.0,1.553938]
[1693997866799,0.238,25743.0,25741.0,0.002]
[1693997867995,0.048,25743.0,25741.0,0.002]
[1693997870770,0.238,25743.0,25741.0,0.002]
[1693997883645,0.214,25743.0,25740.0,1.553968]
[1693997884035,0.238,25743.0,25741.0,0.002]
[1693997884461,0.214,25743.0,25740.0,1.553968]
[1693997885261,0.238,25743.0,25740.0,0.002]
[1693997885504,1.791821,25743.0,25740.0,0.002]
[1693997887477,1.01491,25743.0,25740.0,0.779]
[1693997888494,1.791821,25743.0,25740.0,0.002]
[1693997889554,2.568732,25743.0,25740.0,0.002]
[1693997890358,1.791821,25743.0,25740.0,0.002]
[1693997890681,1.767821,25743.0,25739.0,1.554054]
[1693997891035,1.791821,25743.0,25740.0,0.002]
[1693997891415,1.767821,25743.0,25739.0,1.554054]
[1693997891803,1.767821,25743.0,25740.0,0.002]
[1693997891804,1.791821,25743.0,25740.0,0.002]
[1693997893197,0.99091,25743.0,25741.0,0.09329177]
[1693997893554,1.00991,25743.0,25741.0,0.09329177]
[1693997893976,0.99091,25743.0,25741.0,0.09329177]
[1693997894384,1.01491,25743.0,25741.0,0.09529177]
[1693997894622,0.238,25743.0,25741.0,0.09529177]
[1693997895447,0.238,25743.0,25741.0,0.002]
[1693997897060,0.238,25743.0,25741.0,0.09529177]
[1693997897599,1.014911,25743.0,25741.0,0.09529177]
[1693997898267,1.014911,25743.0,25741.0,0.09504177]
[1693997899056,1.014911,25743.0,25741.0,0.00175]
[1693997899260,1.014911,25743.0,25741.0,0.09504177]
[1693997901977,1.014911,25743.0,25741.0,0.09479177]
[1693997904140,1.014911,25743.0,25741.0,0.0015]
[1693997904958,0.238,25743.0,25741.0,0.0015]
[1693997909885,0.38664527,25742.0,25741.0,0.0015]
[1693997911007,0.38664527,25742.0,25740.0,1.553983]
[1693997911204,0.41064527,25742.0,25741.0,0.002]
[1693997912399,0.38664527,25742.0,25740.0,1.553983]
[1693997912554,0.38664527,25742.0,25741.0,0.02484393]
[1693997912759,0.40564527,25742.0,25741.0,0.02484393]
[1693997913279,0.38664527,25742.0,25741.0,0.02484393]
[1693997913692,0.41064527,25742.0,25741.0,0.02684393]
[1693997923596,1.96452527,25742.0,25741.0,0.02684393]
[1693997924644,1.94052527,25742.0,25741.0,0.02484393]
[1693997924880,1.18758527,25742.0,25741.0,0.02484393]
[1693997925429,1.16358527,25742.0,25741.0,0.02484393]
[1693997925567,1.18758527,25742.0,25741.0,0.02484393]
[1693997927702,1.21158527,25742.0,25741.0,0.02484393]
[1693997928639,1.21158527,25742.0,25741.0,3.02484393]
[1693997935392,1.98852527,25742.0,25741.0,3.02484393]
[1693997935819,1.21158527,25742.0,25741.0,3.02484393]
[1693997939062,0.43464527,25742.0,25741.0,3.02484393]
[1693997940466,0.43464527,25742.0,25741.0,3.80181393]
[1693997941527,0.43464527,25742.0,25741.0,4.57878393]
[1693997942015,0.048,25742.0,25741.0,5.35575393]
[1693997954486,0.048,25742.0,25741.0,5.47655393]
[1693997957622,0.048,25742.0,25741.0,4.69958393]
[1693997957802,0.048,25742.0,25741.0,3.92261393]
[1693997958338,0.048,25742.0,25741.0,3.14564393]
[1693997959239,0.048,25742.0,25741.0,3.92261393]
[1693997959862,0.048,25742.0,25741.0,3.14564393]
[1693997963794,0.19943752,25742.0,25741.0,3.14564393]
[1693997974945,0.19943752,25742.0,25741.0,3.92261393]
[1693997975556,0.048,25742.0,25741.0,4.69958393]
[1693997977322,0.048,25742.0,25741.0,5.47655393]
[1693997977525,0.05638772,25742.0,25741.0,5.47655393]
[1693997982439,0.05638772,25742.0,25741.0,4.69958393]
[1693997984179,0.05638772,25742.0,25741.0,5.47655393]
[1693997984457,0.05638772,25742.0,25741.0,4.69958393]
[1693997984655,0.05638772,25742.0,25741.0,5.47655393]
[1693997985543,0.05638772,25742.0,25741.0,4.69958393]
[1693997995572,0.05638772,25742.0,25741.0,3.92261393]
[1693997996364,0.05638772,25742.0,25741.0,3.14564393]
[1693998000427,0.83332772,25742.0,25741.0,3.02484393]
[1693998002201,0.05638772,25742.0,25741.0,3.02484393]
[1693998003202,0.83332772,25742.0,25741.0,3.02484393]
[1693998003807,1.61026772,25742.0,25741.0,3.02484393]
[1693998004053,1.99691299,25742.0,25741.0,3.02484393]
[1693998005109,0.44303299,25742.0,25741.0,3.02484393]
[1693998005563,0.44303299,25742.0,25741.0,3.14564393]
[1693998009415,0.05638772,25742.0,25741.0,3.14564393]
[1693998009598,0.05638772,25742.0,25741.0,4.69958393]
[1693998011042,0.05438772,25742.0,25741.0,4.69958393]
[1693998011411,0.05438772,25742.0,25741.0,5.0612814]
[1693998011614,0.05438772,25742.0,25741.0,4.69958393]
[1693998013150,0.05438772,25742.0,25741.0,4.54958393]
[1693998013711,0.05438772,25742.0,25741.0,3.77261393]
[1693998013902,0.05438772,25742.0,25741.0,3.79441413]
[1693998014971,0.05438772,25742.0,25741.0,3.01744413]
[1693998018304,0.05438772,25742.0,25741.0,3.21174413]
[1693998018705,0.046,25742.0,25741.0,3.21174413]
[1693998018910,0.046,25742.0,25741.0,7.04906519]
[1693998019969,0.09412598,25742.0,25741.0,7.04906519]
[1693998021536,0.046,25742.0,25741.0,7.04906519]
[1693998021738,0.046,25742.0,25741.0,6.66241992]
[1693998030928,0.046,25742.0,25741.0,5.54265413]
[1693998031149,0.046,25742.0,25741.0,6.66239782]
[1693998037511,0.0689155,25742.0,25741.0,6.66239782]
[1693998039787,0.0689155,25742.0,25741.0,5.88542782]
[1693998040106,0.0689155,25742.0,25741.0,6.66239782]
[1693998041939,0.0689155,25742.0,25741.0,4.33148782]
[1693998042155,0.046,25742.0,25741.0,4.33148782]
[1693998056589,0.046,25742.0,25741.0,3.21174413]
[1693998056794,0.046,25742.0,25741.0,4.33148397]
[1693998063246,0.046,25742.0,25741.0,3.21174413]
[1693998063449,0.046,25742.0,25741.0,4.331516]
[1693998072451,0.046,25742.0,25741.0,4.63999]
[1693998075059,0.046,25742.0,25741.0,4.331516]
[1693998080839,0.046,25742.0,25741.0,4.33147515]
[1693998090689,0.0386,25742.0,25741.0,4.33147515]
[1693998093638,0.0368,25742.0,25741.0,4.71812042]
[1693998095764,0.0368,25742.0,25741.0,5.19812042]
[1693998096036,0.0368,25742.0,25741.0,5.58476569]
[1693998096577,0.0368,25742.0,25741.0,5.56476569]
[1693998097717,0.0368,25742.0,25741.0,5.52476569]
[1693998098355,0.0368,25742.0,25741.0,5.48476569]
[1693998104377,0.0368,25742.0,25741.0,5.51631331]
[1693998104775,0.0368,25742.0,25741.0,5.49631331]
[1693998108409,0.0368,25742.0,25741.0,5.50799205]
[1693998111064,0.0347,25742.0,25741.0,5.74879205]
[1693998113918,0.19,25743.0,25742.0,0.16]
[1693998114160,0.19,25743.0,25742.0,2.59462156]
[1693998114363,0.19,25743.0,25742.0,2.61683333]
[1693998114973,0.214,25743.0,25742.0,2.61883333]
[1693998115474,0.238,25743.0,25742.0,2.61883333]
[1693998119303,0.2366,25743.0,25742.0,2.61883333]
[1693998120389,0.2366,25743.0,25742.0,2.53883333]
[1693998123616,0.2366,25743.0,25742.0,2.41803333]
[1693998124348,0.2366,25743.0,25742.0,2.53883333]
[1693998125316,0.2126,25743.0,25742.0,2.53883333]
[1693998125531,0.2286,25743.0,25742.0,2.53983333]
[1693998125775,0.2046,25743.0,25742.0,2.53783333]
[1693998127276,0.2186,25743.0,25742.0,2.53883333]
[1693998128650,0.2165,25743.0,25742.0,2.53883333]
[1693998129263,0.2025,25743.0,25742.0,2.53783333]
[1693998129461,0.2075,25743.0,25742.0,2.53883333]
[1693998131855,0.2075,25743.0,25742.0,2.51883333]
[1693998132878,0.2054,25743.0,25742.0,2.51883333]
[1693998137464,0.2054,25743.0,25742.0,2.99591333]
[1693998137662,0.2054,25743.0,25742.0,2.99363333]
[1693998137880,0.2054,25743.0,25742.0,2.99315333]
[1693998138083,0.2054,25743.0,25742.0,2.99345333]
[1693998138300,0.0498158,25745.0,25744.0,0.5882]
[1693998138503,0.0498158,25745.0,25744.0,2.63617629]
[1693998138720,0.03196614,25754.0,25748.0,0.04]
[1693998138862,0.04980012,25750.0,25749.0,1.27410417]
[1693998139204,0.1654,25753.0,25749.0,1.24024606]
[1693998139414,0.3766,25753.0,25752.0,0.1208]
[1693998139816,0.03196614,25754.0,25752.0,0.1208]
[1693998139991,0.03196614,25754.0,25753.0,0.1208]
[1693998140159,0.24316614,25754.0,25753.0,0.1208]
[1693998140351,0.03196614,25754.0,25753.0,0.1208]
[1693998141502,0.02,25752.0,25747.0,0.10939417]
[1693998141716,0.02,25752.0,25751.0,0.1208]
[1693998142113,0.02,25752.0,25751.0,0.14289384]
[1693998142913,0.02,25752.0,25751.0,0.1208]
[1693998143171,0.02,25752.0,25751.0,0.14173545]
[1693998143321,0.044,25752.0,25751.0,0.14373545]
[1693998144530,0.068,25752.0,25751.0,0.14573545]
[1693998148333,0.10330959,25752.0,25751.0,0.14573545]
[1693998148919,0.10330959,25752.0,25751.0,0.34003545]
[1693998154746,0.10330959,25752.0,25751.0,0.34003545]
[1693998158440,0.09743125,25752.0,25751.0,0.21923545]
[1693998158643,0.21711442,25752.0,25751.0,0.21923545]
[1693998160331,0.13733419,25752.0,25751.0,0.21923545]
[1693998160536,0.52397946,25752.0,25751.0,0.21923545]
[1693998161301,0.52397946,25752.0,25751.0,0.1983]
[1693998161728,0.52397946,25752.0,25751.0,0.21614745]
[1693998176556,0.64659853,25752.0,25751.0,0.21614745]
[1693998178535,0.52397946,25752.0,25751.0,0.21614745]
[1693998178962,0.67031507,25752.0,25751.0,0.21614745]
[1693998180986,0.52397946,25752.0,25751.0,0.21614745]
[1693998185284,0.52397946,25752.0,25751.0,2.21614745]
[1693998185494,0.81275946,25752.0,25751.0,2.21614745]
[1693998185692,0.74477946,25752.0,25751.0,2.21614745]
[1693998185896,0.81749946,25752.0,25751.0,2.21614745]
[1693998186105,0.81761946,25752.0,25751.0,2.1983]
[1693998186311,0.81743946,25752.0,25751.0,2.1983]
[1693998186515,0.81575946,25752.0,25751.0,2.21614745]
[1693998186719,0.81689946,25752.0,25751.0,2.21614745]
[1693998186994,0.81677946,25752.0,25751.0,2.21614745]
[1693998187153,0.81413946,25752.0,25751.0,2.21614745]
[1693998187360,0.81329946,25752.0,25751.0,2.21614745]
[1693998187563,0.81185946,25752.0,25751.0,2.21614745]
[1693998187923,0.81533946,25752.0,25751.0,2.21614745]
[1693998188127,0.81503946,25752.0,25751.0,2.21614745]
[1693998188337,0.81329946,25752.0,25751.0,2.21614745]
[1693998188518,0.81275946,25752.0,25751.0,2.21614745]
[1693998188654,0.81179946,25752.0,25751.0,2.21614745]
[1693998188851,0.81107946,25752.0,25751.0,2.21614745]
[1693998189059,0.81077946,25752.0,25751.0,2.21614745]
[1693998189266,0.81119946,25752.0,25751.0,2.21614745]
[1693998189522,0.81017946,25752.0,25751.0,2.21614745]
[1693998189744,0.74477946,25752.0,25751.0,2.21614745]
[1693998190164,0.81353946,25752.0,25751.0,2.1983]
[1693998190294,0.81347946,25752.0,25751.0,2.21614745]
[1693998190498,0.81323946,25752.0,25751.0,2.21614745]
[1693998190742,0.81311946,25752.0,25751.0,2.21614745]
[1693998190978,0.81269946,25752.0,25751.0,2.21614745]
[1693998191111,0.81359946,25752.0,25751.0,2.21614745]
[1693998191315,0.81341946,25752.0,25751.0,2.21614745]
[1693998191555,0.81281946,25752.0,25751.0,2.21614745]
[1693998191771,0.81263946,25752.0,25751.0,2.21614745]
[1693998192151,0.81245946,25752.0,25751.0,2.21614745]
[1693998192492,0.81209946,25752.0,25751.0,2.21614745]
[1693998192720,0.81191946,25752.0,25751.0,2.21614745]
[1693998192905,0.81161946,25752.0,25751.0,2.21614745]
[1693998193284,0.81137946,25752.0,25751.0,2.21614745]
[1693998193481,0.81107946,25752.0,25751.0,2.21614745]
[1693998193646,0.81083946,25752.0,25751.0,2.21614745]
[1693998193846,0.68991946,25752.0,25751.0,2.21614745]
[1693998194051,0.81053946,25752.0,25751.0,2.21614745]
[1693998194251,0.81065946,25752.0,25751.0,2.21614745]
[1693998194494,0.81029946,25752.0,25751.0,2.21614745]
[1693998194702,0.81023946,25752.0,25751.0,2.21614745]
[1693998194904,0.74477946,25752.0,25751.0,2.21614745]
[1693998199728,0.62397946,25752.0,25751.0,2.21614745]
[1693998199932,0.62397946,25752.0,25751.0,2.1983]
[1693998200212,0.59294821,25752.0,25751.0,2.21614745]
[1693998200869,0.72759092,25752.0,25751.0,2.21614745]
[1693998201854,0.59294821,25752.0,25751.0,2.21614745]
[1693998203439,0.75402992,25752.0,25751.0,2.21614745]
[1693998205075,0.75242992,25752.0,25751.0,2.21614745]
[1693998211160,0.75242992,25752.0,25751.0,2.1983]
[1693998214099,0.75242992,25752.0,25751.0,2.21614745]
[1693998214299,0.59134821,25752.0,25751.0,2.21614745]
[1693998214496,0.74072281,25752.0,25751.0,2.21614745]
[1693998214702,0.59134821,25752.0,25751.0,2.21614745]
[1693998216391,0.70707433,25752.0,25751.0,2.21614745]
[1693998222817,0.80006417,25752.0,25751.0,2.21614745]
[1693998223625,0.70707433,25752.0,25751.0,2.21614745]
[1693998223831,0.80006417,25752.0,25751.0,2.21614745]
[1693998226690,0.68433805,25752.0,25751.0,2.21614745]
[1693998230264,0.82382281,25752.0,25751.0,2.21614745]
[1693998230467,0.73083297,25752.0,25751.0,2.21614745]
[1693998235227,0.72903297,25752.0,25751.0,2.21614745]
[1693998237723,0.75203297,25752.0,25751.0,2.21614745]
[1693998238859,0.82427297,25752.0,25751.0,2.21614745]
[1693998239066,0.82433297,25752.0,25751.0,2.1983]
[1693998239458,0.82433297,25752.0,25751.0,2.21614745]
[1693998239459,0.97978997,25752.0,25751.0,2.21614745]
[1693998239699,0.97960997,25752.0,25751.0,2.21614745]
[1693998239854,0.98122997,25752.0,25751.0,2.21614745]
[1693998240055,0.96134997,25752.0,25751.0,2.21614745]
[1693998240275,0.96128997,25752.0,25751.0,2.21614745]
[1693998240642,0.96194997,25752.0,25751.0,2.21614745]
[1693998241016,1.2105358,25752.0,25751.0,2.21614745]
[1693998241246,1.07105104,25752.0,25751.0,2.21614745]
[1693998241446,1.07087104,25752.0,25751.0,2.21614745]
[1693998241621,1.06733104,25752.0,25751.0,2.21614745]
[1693998241825,1.20690203,25752.0,25751.0,2.21614745]
[1693998241979,1.20540203,25752.0,25751.0,2.21614745]
[1693998242235,1.20300203,25752.0,25751.0,2.21614745]
[1693998242434,1.20498203,25752.0,25751.0,2.21614745]
[1693998242843,1.20492203,25752.0,25751.0,2.21614745]
[1693998243313,1.20408203,25752.0,25751.0,2.21614745]
[1693998243516,1.20216203,25752.0,25751.0,2.21614745]
[1693998243842,1.20084203,25752.0,25751.0,2.21614745]
[1693998244037,1.20204203,25752.0,25751.0,2.21614745]
[1693998244239,1.20078203,25752.0,25751.0,2.21614745]
[1693998244441,1.20576203,25752.0,25751.0,2.21614745]
[1693998244640,1.20570203,25752.0,25751.0,2.21614745]
[1693998244908,1.14297588,25752.0,25751.0,2.21614745]
[1693998245191,1.12165588,25752.0,25751.0,2.21614745]
[1693998245410,1.12417588,25752.0,25751.0,2.21614745]
[1693998245618,1.12201588,25752.0,25751.0,2.21614745]
[1693998245772,1.12021588,25752.0,25751.0,2.21614745]
[1693998245974,1.12015588,25752.0,25751.0,2.21614745]
[1693998246170,1.12021588,25752.0,25751.0,2.21614745]
[1693998246369,1.12015588,25752.0,25751.0,2.21614745]
[1693998246575,1.11901588,25752.0,25751.0,2.21614745]
[1693998246808,1.12021588,25752.0,25751.0,2.21614745]
[1693998247006,0.9359162,25752.0,25751.0,2.21614745]
[1693998247225,0.9351962,25752.0,25751.0,2.21614745]
[1693998247428,0.9352562,25752.0,25751.0,2.21614745]
[1693998247629,0.8676362,25752.0,25751.0,2.21614745]
[1693998248866,0.9359762,25752.0,25751.0,2.21614745]
[1693998249145,0.9360362,25752.0,25751.0,2.21614745]
[1693998249448,0.9360962,25752.0,25751.0,2.21614745]
[1693998249913,0.9359762,25752.0,25751.0,2.21614745]
[1693998250090,0.9359162,25752.0,25751.0,2.21614745]
[1693998250394,0.9352562,25752.0,25751.0,2.21614745]
[1693998250607,0.9349562,25752.0,25751.0,2.21614745]
[1693998250807,0.9362162,25752.0,25751.0,2.21614745]
[1693998251026,0.9364562,25752.0,25751.0,2.21614745]
[1693998251184,0.9365762,25752.0,25751.0,2.21614745]
[1693998251386,0.9355562,25752.0,25751.0,2.21614745]
[1693998251580,0.9362162,25752.0,25751.0,2.21614745]
[1693998251812,0.9361562,25752.0,25751.0,2.21614745]
[1693998252017,0.9362762,25752.0,25751.0,2.21614745]
[1693998252535,0.9363962,25752.0,25751.0,2.21614745]
[1693998252741,0.9364562,25752.0,25751.0,2.21614745]
[1693998252964,0.9363962,25752.0,25751.0,2.21614745]
[1693998253165,1.0572562,25752.0,25751.0,2.21614745]
[1693998253321,1.0573762,25752.0,25751.0,2.21614745]